bitfinex-derivatives/quotes_ETHF0:USTF0_20240817
["timestamp","ask_amount","ask_price","bid_price","bid_amount"]
[1723876349663,0.35114613,2602.5,2602.4,0.00272871]
[1723876352068,0.35114613,2602.5,2602.4,1.92356871]
[1723876352369,0.35114613,2602.5,2602.4,0.00272871]
[1723876352577,0.35114613,2602.5,2602.4,1.92356871]
[1723876355176,0.35114613,2602.5,2602.4,0.00272871]
[1723876355671,8.03508613,2602.5,2602.4,0.00272871]
[1723876356270,9.54439493,2602.5,2602.4,0.00272871]
[1723876357165,8.03508613,2602.5,2602.4,0.00272871]
[1723876357875,9.54354994,2602.5,2602.4,0.00272871]
[1723876358278,10.04692693,2602.5,2602.4,0.00272871]
[1723876362373,8.12615693,2602.5,2602.4,0.00272871]
[1723876362577,5.76611613,2602.5,2602.4,0.00272871]
[1723876362771,7.77795693,2602.5,2602.4,0.00272871]
[1723876368278,5.76611613,2602.5,2602.4,0.00272871]
[1723876370271,7.77945981,2602.5,2602.4,0.00272871]
[1723876371584,10.98725981,2602.5,2602.4,0.00272871]
[1723876373886,8.97391613,2602.5,2602.4,0.00272871]
[1723876374973,10.98726538,2602.5,2602.4,0.00272871]
[1723876375173,8.97391613,2602.5,2602.4,0.00272871]
[1723876376987,5.76611613,2602.5,2602.4,0.00272871]
[1723876377181,8.97391613,2602.5,2602.4,0.00272871]
[1723876379783,10.89468613,2602.5,2602.4,0.00272871]
[1723876379981,14.57046257,2602.5,2601.9,1.0031388]
[1723876380187,1.92136,2601.7,2601.6,1.3593388]
[1723876380385,1.92144,2601.6,2601.5,2.5147859]
[1723876380587,1.92151,2601.5,2601.4,1.8641471]
[1723876380789,1.92151,2601.5,2601.3,0.3562]
[1723876380993,6.64001122,2601.4,2601.3,0.00376652]
[1723876381192,7.14377374,2601.4,2601.3,0.00376652]
[1723876381398,7.14377374,2601.4,2600.9,0.00577245]
[1723876381399,1.92166,2601.3,2600.9,0.00577245]
[1723876381584,3.43122826,2601.2,2600.9,0.00577245]
[1723876381787,3.43122826,2601.2,2600.9,1.92772245]
[1723876381986,3.8448,2601.1,2600.9,0.00577245]
[1723876382183,1.92188,2601.0,2600.9,0.00577245]
[1723876382393,1.92188,2601.0,2600.9,0.00992214]
[1723876382394,5.76668,2601.0,2600.9,0.00992214]
[1723876382994,1.92188,2601.0,2600.9,0.00992214]
[1723876383800,3.43115826,2601.3,2600.9,1.93184214]
[1723876384096,3.21357245,2601.4,2601.0,1.92185]
[1723876384097,5.13518245,2601.4,2601.0,1.92185]
[1723876384398,1.92166,2601.3,2601.0,2.64155]
[1723876385097,1.92740245,2601.4,2601.0,2.64155]
[1723876385300,1.92166,2601.3,2601.0,2.64155]
[1723876385493,0.00577245,2601.4,2601.0,0.7197]
[1723876385494,1.92740245,2601.4,2601.0,0.7197]
[1723876385888,1.92166,2601.3,2601.0,2.64154]
[1723876386286,1.92176,2601.2,2601.0,0.7197]
[1723876386699,1.9217,2601.3,2601.0,0.7197]
[1723876387195,0.00577245,2601.4,2601.0,2.64156]
[1723876387492,1.92739245,2601.4,2601.0,2.64156]
[1723876388090,1.92176,2601.2,2601.0,0.7197]
[1723876388285,1.92176,2601.2,2601.0,0.3528]
[1723876388696,2.26566,2601.2,2601.0,0.3528]
[1723876389094,2.28418,2601.3,2601.0,2.27467]
[1723876389398,3.21357245,2601.4,2601.0,2.27467]
[1723876389399,1.92740245,2601.4,2601.0,2.27467]
[1723876389996,1.92736245,2601.4,2600.9,0.00992214]
[1723876390294,1.92187,2601.1,2600.9,0.37712214]
[1723876390595,1.92177,2601.2,2600.9,2.29907214]
[1723876392001,1.9217,2601.3,2600.9,0.37712214]
[1723876392203,1.9217,2601.3,2600.9,2.29904214]
[1723876392399,1.9217,2601.3,2601.0,1.92187]
[1723876392701,0.00577245,2601.4,2601.1,1.92174]
[1723876392998,0.00577245,2601.4,2601.2,0.3709]
[1723876393199,0.00577245,2601.4,2601.3,0.366]
[1723876398395,1.92735245,2601.4,2601.3,0.366]
[1723876399599,1.92735245,2601.4,2601.1,1.92177]
[1723876399806,0.369,2601.3,2601.1,1.92177]
[1723876402200,2.29066,2601.3,2601.1,1.92177]
[1723876402402,2.29066,2601.3,2601.0,1.92185]
[1723876402598,1.92177,2601.2,2600.9,2.27744214]
[1723876403207,0.3464,2601.1,2600.9,2.27744214]
[1723876404110,2.2907,2601.3,2601.0,1.92188]
[1723876404803,1.92174,2601.2,2601.0,1.92188]
[1723876404998,2.2907,2601.3,2601.0,1.92188]
[1723876408107,1.92176,2601.2,2600.9,2.27745214]
[1723876409706,1.92184,2601.1,2600.9,0.35552214]
[1723876411404,1.92179,2601.2,2600.9,2.27747214]
[1723876418311,1.92185,2601.1,2600.9,0.35552214]
[1723876418505,0.3617,2601.0,2600.9,0.00992214]
[1723876421514,1.92177,2601.2,2600.9,1.93187214]
[1723876422009,1.92177,2601.2,2600.9,2.29067214]
[1723876422205,5.49849,2601.3,2601.0,1.92185]
[1723876422715,3.5768,2601.3,2601.1,0.3573]
[1723876423513,5.08625826,2601.3,2601.1,0.3573]
[1723876424224,3.5768,2601.3,2601.1,0.3573]
[1723876424521,5.08625826,2601.3,2601.1,0.3573]
[1723876425718,1.50945826,2601.2,2601.1,1.36279323]
[1723876426412,1.50945826,2601.2,2601.1,5.20672484]
[1723876426816,1.87845826,2601.3,2601.1,5.71287871]
[1723876427009,1.87845826,2601.3,2601.2,1.00608186]
[1723876428409,1.87845826,2601.3,2601.2,2.9281204]
[1723876428628,0.369,2601.3,2601.2,1.00608186]
[1723876429120,1.88089787,2601.3,2601.2,2.928117]
[1723876429314,1.88089787,2601.3,2601.2,1.92203514]
[1723876429621,2.38161101,2601.3,2601.2,1.00648077]
[1723876429923,0.369,2601.3,2601.2,1.00648077]
[1723876430127,2.38161101,2601.3,2601.2,1.00648077]
[1723876431026,0.369,2601.3,2601.2,2.92859733]
[1723876431321,1.88119289,2601.3,2601.2,3.43376366]
[1723876431522,1.88119289,2601.3,2601.2,1.92211656]
[1723876431823,1.88117077,2601.3,2601.2,3.43376366]
[1723876432020,0.369,2601.3,2601.2,2.92857934]
[1723876434232,4.30327101,2601.3,2601.2,1.00646278]
[1723876434533,2.29066,2601.3,2601.2,1.00646278]
[1723876434824,2.29066,2601.3,2601.2,2.92858701]
[1723876435226,2.29066,2601.3,2601.2,1.00646278]
[1723876435425,0.369,2601.3,2601.2,1.00646278]
[1723876435728,1.88123604,2601.3,2601.2,3.43376763]
[1723876436136,1.88123604,2601.3,2601.2,2.92856402]
[1723876436137,0.369,2601.3,2601.2,2.92856402]
[1723876436323,2.29066,2601.3,2601.2,2.92856402]
[1723876436630,2.29066,2601.3,2601.2,1.00644349]
[1723876436631,4.30327101,2601.3,2601.2,1.00644349]
[1723876438918,2.38161101,2601.3,2601.2,1.00644349]
[1723876439122,1.88125531,2601.3,2601.2,3.43371406]
[1723876439330,1.88125746,2601.3,2601.2,3.43371406]
[1723876439931,1.88125746,2601.3,2601.2,3.78281406]
[1723876440330,1.51225746,2601.3,2601.2,5.70454406]
[1723876440519,1.50017213,2601.4,2601.3,1.92166]
[1723876440726,1.49439968,2601.7,2601.3,14.41805697]
[1723876440928,2.75001101,2601.8,2601.7,1.92136]
[1723876440929,0.7374,2601.8,2601.7,1.92136]
[1723876441120,5.22041101,2602.0,2601.7,5.35193451]
[1723876441329,3.2078,2602.0,2601.9,1.50880663]
[1723876441637,3.2078,2602.0,2601.9,3.43057451]
[1723876441935,3.2078,2602.0,2601.9,1.00499149]
[1723876442631,3.2078,2602.0,2601.8,1.35409149]
[1723876443030,3.2078,2602.0,2601.9,1.00499149]
[1723876443332,3.2078,2602.0,2601.8,1.35409149]
[1723876443931,5.12894,2602.0,2601.8,1.35409149]
[1723876444536,5.12894,2602.0,2601.8,0.3491]
[1723876444931,1.92114,2602.0,2601.8,0.3491]
[1723876446427,3.03107,2602.1,2601.5,1.00499149]
[1723876446625,1.92136,2601.7,2601.5,1.00499149]
[1723876446825,1.0502,2601.6,2601.5,1.00499149]
[1723876447022,2.97164,2601.6,2601.5,1.00499149]
[1723876447331,2.97164,2601.6,2601.4,1.00499149]
[1723876447925,6.17944,2601.6,2601.3,2.92665149]
[1723876448122,1.92162,2601.4,2601.2,1.00499149]
[1723876448325,1.92162,2601.4,2601.1,1.50748724]
[1723876448326,1.92162,2601.4,2601.1,1.00499149]
[1723876448527,1.92162,2601.4,2601.0,3.29873149]
[1723876448731,1.92162,2601.4,2601.1,1.00499149]
[1723876449036,1.92162,2601.4,2601.0,3.29873149]
[1723876449237,1.92162,2601.4,2601.1,1.00499149]
[1723876450230,1.92162,2601.4,2601.0,3.29873149]
[1723876451839,1.92164,2601.4,2601.0,3.29873149]
[1723876452432,4.258,2601.6,2601.0,3.29873149]
[1723876452726,4.258,2601.6,2600.9,1.51740938]
[1723876452727,1.92176,2601.2,2600.9,1.01491363]
[1723876452932,0.3702,2601.1,2600.9,1.01491363]
[1723876453134,1.0626,2601.1,2600.9,2.93685363]
[1723876453332,0.3498,2601.1,2600.9,1.01491363]
[1723876454134,0.3498,2601.1,2600.9,2.93682363]
[1723876455242,0.3498,2601.1,2600.9,1.93183214]
[1723876455742,0.3498,2601.1,2600.9,2.93682363]
[1723876455943,0.3498,2601.1,2600.9,1.93183214]
[1723876456241,0.3498,2601.1,2600.9,0.00992214]
[1723876456541,0.3498,2601.1,2600.9,1.01491363]
[1723876456842,0.3498,2601.1,2600.9,2.93685363]
[1723876457243,0.3498,2601.1,2600.9,1.01491363]
[1723876457443,0.3498,2601.1,2600.9,0.00992214]
[1723876457740,0.3498,2601.1,2600.9,1.93185214]
[1723876457938,0.3498,2601.1,2600.9,1.01491363]
[1723876458243,0.3498,2601.1,2600.9,2.93682363]
[1723876459246,0.3498,2601.1,2600.9,1.93183214]
[1723876459543,0.3498,2601.1,2601.0,1.92188]
[1723876460342,0.3498,2601.1,2600.9,2.93682363]
[1723876460545,0.3498,2601.1,2601.0,1.92188]
[1723876462338,0.3498,2601.1,2600.9,2.93682363]
[1723876463150,1.92188,2601.0,2600.9,0.00992214]
[1723876463440,2.27968,2601.0,2600.9,0.00992214]
[1723876467142,6.12448,2601.0,2600.9,0.00992214]
[1723876468137,1.9222,2600.6,2600.4,1.00499149]
[1723876468451,3.00465,2600.5,2600.3,1.35039149]
[1723876468650,1.0824,2600.5,2600.3,0.3454]
[1723876469045,1.0824,2600.5,2600.3,2.2678]
[1723876469348,1.08595326,2600.5,2600.3,2.27247998]
[1723876469740,3.00821326,2600.5,2600.3,0.35007998]
[1723876469938,1.08595326,2600.5,2600.3,0.35007998]
[1723876472853,1.08595326,2600.5,2600.3,0.00467998]
[1723876473048,3.00825326,2600.5,2600.3,0.00467998]
[1723876473661,1.08595326,2600.5,2600.3,0.00467998]
[1723876475660,0.37615326,2600.5,2600.3,1.92704998]
[1723876476955,0.00355326,2600.5,2600.3,1.92704998]
[1723876477153,0.00355326,2600.5,2600.4,0.3782]
[1723876481966,0.00355326,2600.5,2600.3,1.92704998]
[1723876491965,1.92580326,2600.5,2600.3,0.00467998]
[1723876492166,1.92232,2600.4,2600.3,0.00467998]
[1723876492365,2.27032,2600.4,2600.3,0.00467998]
[1723876492571,6.11592,2600.4,2600.1,0.00577245]
[1723876492773,5.13027,2600.2,2600.1,0.00577245]
[1723876493174,8.97587,2600.2,2600.1,0.00577245]
[1723876493578,8.97587,2600.2,2600.1,0.00867563]
[1723876495480,5.13027,2600.2,2600.1,0.00867563]
[1723876497687,3.2078,2600.2,2600.1,0.00867563]
[1723876497978,0.3622,2600.3,2600.1,1.93121563]
[1723876498177,0.3622,2600.3,2600.2,0.3555]
[1723876500475,0.348,2600.4,2600.2,2.27797]
[1723876500685,0.348,2600.4,2600.3,1.9224]
[1723876500871,0.348,2600.4,2600.2,2.27794]
[1723876501684,0.348,2600.4,2600.3,1.9224]
[1723876501889,0.348,2600.4,2600.2,2.27793]
[1723876502083,0.73155326,2600.5,2600.4,1.92232]
[1723876502285,0.73155326,2600.5,2600.3,1.92235]
[1723876503185,0.35985326,2600.5,2600.4,1.92232]
[1723876503587,0.35985326,2600.5,2600.3,1.92235]
[1723876504683,0.35985326,2600.5,2600.4,1.92232]
[1723876504875,0.35985326,2600.5,2600.3,1.92235]
[1723876505078,0.35985326,2600.5,2600.4,0.3708]
[1723876510393,1.86833292,2600.5,2600.4,0.3708]
[1723876510791,0.35985326,2600.5,2600.4,0.3708]
[1723876512090,1.9224,2600.3,2600.2,1.00499149]
[1723876512396,5.71393292,2600.5,2600.1,1.01366712]
[1723876512397,1.92247,2600.2,2600.1,1.01366712]
[1723876512590,2.28577,2600.2,2600.1,1.01366712]
[1723876513491,7.64225053,2600.2,2600.1,0.00867563]
[1723876513696,6.13137,2600.2,2600.1,0.00867563]
[1723876515005,6.13137,2600.2,2599.8,1.00499149]
[1723876515303,1.92268,2600.0,2599.8,1.00499149]
[1723876515494,1.92268,2600.0,2599.8,1.35269149]
[1723876516090,2.27628,2600.0,2599.8,1.35667936]
[1723876518098,2.27628,2600.0,2599.8,0.35168787]
[1723876519498,1.92269,2599.9,2599.8,0.00398787]
[1723876519699,7.28025932,2599.9,2599.8,0.00398787]
[1723876521203,5.76909,2599.9,2599.8,0.00398787]
[1723876521395,7.28025932,2599.9,2599.8,0.00398787]
[1723876521588,5.76909,2599.9,2599.8,0.00398787]
[1723876522104,5.07256932,2600.0,2599.8,0.00398787]
[1723876522105,5.48406,2600.0,2599.8,0.00398787]
[1723876522400,5.48406,2600.0,2599.8,0.34698787]
[1723876524198,1.92269,2599.9,2599.8,0.34698787]
[1723876525595,5.48406,2600.0,2599.8,0.34698787]
[1723876526704,1.92269,2599.9,2599.8,0.34698787]
[1723876527207,0.3782,2600.1,2599.8,0.34698787]
[1723876527402,5.84542,2600.3,2600.0,1.92259]
[1723876527702,2.63762,2600.3,2600.1,0.3503]
[1723876527903,1.92247,2600.2,2599.9,1.92265]
[1723876528208,0.3516,2600.1,2599.9,1.92265]
[1723876529906,5.13044,2600.0,2599.8,0.69728787]
[1723876531511,1.92264,2600.0,2599.8,0.69728787]
[1723876531708,5.48197,2600.1,2599.8,2.62005787]
[1723876533610,1.92262,2600.0,2599.8,0.69728787]
[1723876535711,5.48196,2600.1,2599.8,2.62002787]
[1723876535901,1.92256,2600.1,2599.8,2.62002787]
[1723876536099,1.92256,2600.1,2599.8,3.62501936]
[1723876536303,1.9225,2600.2,2599.9,1.92269]
[1723876536504,1.9225,2600.2,2599.8,3.62500936]
[1723876536905,3.43366932,2600.2,2599.8,3.62500936]
[1723876537505,1.92255,2600.1,2599.8,3.62500936]
[1723876540916,1.92262,2600.0,2599.8,1.70227936]
[1723876541222,0.366,2600.0,2599.8,0.34698787]
[1723876541512,0.3474,2599.9,2599.8,0.34698787]
[1723876541717,0.7122,2599.9,2599.8,0.34698787]
[1723876542519,2.63489,2599.9,2599.8,0.34698787]
[1723876544311,2.63489,2599.9,2599.8,0.00398787]
[1723876544719,6.48129,2599.9,2599.8,0.00398787]
[1723876548207,11.20025932,2599.9,2599.8,0.00398787]
[1723876550917,7.99245932,2599.9,2599.8,0.00398787]
[1723876551118,11.20025932,2599.9,2599.8,0.00398787]
[1723876555120,9.68909,2599.9,2599.8,0.00398787]
[1723876557321,5.84269,2599.9,2599.8,0.00398787]
[1723876557517,9.68909,2599.9,2599.8,0.00398787]
[1723876558221,11.70354715,2599.9,2599.8,0.00398787]
[1723876558526,9.68909,2599.9,2599.8,0.00398787]
[1723876558917,11.70354715,2599.9,2599.8,0.00398787]
[1723876559925,8.49574715,2599.9,2599.8,0.00398787]
[1723876560224,1.51255645,2600.0,2599.9,1.92269]
[1723876560432,1.51255645,2600.1,2599.9,3.79109683]
[1723876560728,1.51255645,2600.1,2600.0,4.85306713]
[1723876560918,1.51255645,2600.1,2600.0,2.92995754]
[1723876561225,1.51255645,2600.1,2600.0,4.85284605]
[1723876561422,1.51255645,2600.3,2600.2,1.92247]
[1723876561624,1.51196364,2600.4,2600.3,0.3605]
[1723876561922,1.51196364,2600.4,2600.3,3.28983092]
[1723876561923,1.51196533,2600.4,2600.3,3.28983092]
[1723876562120,1.51196533,2600.4,2600.3,3.66893092]
[1723876562623,1.51196533,2600.4,2600.3,0.7396]
[1723876564224,1.92232,2600.4,2600.3,0.3605]
[1723876565724,3.43367066,2600.4,2600.3,0.3605]
[1723876566026,3.77537066,2600.4,2600.3,0.3605]
[1723876566224,2.26402,2600.4,2600.3,0.3605]
[1723876566529,3.77527682,2600.4,2600.3,0.3605]
[1723876567223,3.77527682,2600.4,2600.1,1.00694092]
[1723876567224,1.85295682,2600.4,2600.1,1.00694092]
[1723876567428,1.85295682,2600.4,2600.2,0.3692]
[1723876568729,1.9224,2600.3,2600.2,0.3692]
[1723876571532,5.06075682,2600.4,2600.2,0.3692]
[1723876571533,6.64143682,2600.4,2600.2,0.3692]
[1723876571738,6.64143682,2600.4,2600.3,0.3474]
[1723876572732,3.43363682,2600.4,2600.3,0.3474]
[1723876572925,6.64143682,2600.4,2600.3,0.3474]
[1723876573734,3.43363682,2600.4,2600.3,0.3474]
[1723876573924,6.64143682,2600.4,2600.3,0.3474]
[1723876578139,1.9224,2600.3,2600.2,0.3692]
[1723876578638,2.285,2600.3,2600.2,0.3692]
[1723876579236,0.3626,2600.3,2600.2,0.3692]
[1723876579538,2.285,2600.3,2600.2,0.3692]
[1723876581827,4.71905682,2600.4,2600.2,2.29162]
[1723876582133,3.79289008,2600.5,2600.2,2.29162]
[1723876582838,3.79289008,2600.5,2600.3,1.92239]
[1723876583037,3.79289008,2600.5,2600.2,2.2916]
[1723876583836,3.79289008,2600.5,2600.3,1.92239]
[1723876584043,3.79289008,2600.5,2600.2,2.29164]
[1723876584940,1.87061008,2600.5,2600.2,0.3692]
[1723876585139,1.87061008,2600.5,2600.3,1.92234]
[1723876585343,0.35935326,2600.5,2600.3,1.92234]
[1723876585842,0.35935326,2600.5,2600.4,1.92232]
[1723876586044,0.00355326,2600.5,2600.4,1.92232]
[1723876587346,0.00355326,2600.5,2600.4,5.76792]
[1723876588946,0.00355326,2600.5,2600.4,3.8456]
[1723876589140,0.00355326,2600.5,2600.4,5.76792]
[1723876593548,0.00355326,2600.5,2600.4,3.8456]
[1723876595852,0.00355326,2600.5,2600.4,5.76792]
[1723876596454,0.00355326,2600.5,2600.4,3.8456]
[1723876599046,0.38105326,2600.5,2600.4,3.8456]
[1723876600653,0.74555326,2600.5,2600.4,3.8456]
[1723876600853,0.74555326,2600.5,2600.3,3.29179092]
[1723876601354,0.74555326,2600.5,2600.3,2.92929092]
[1723876601549,2.66780326,2600.5,2600.3,2.92929092]
[1723876601751,2.66780326,2600.5,2600.3,4.85254092]
[1723876601954,2.66780326,2600.5,2600.3,2.92933092]
[1723876602150,2.66780326,2600.5,2600.3,6.77493092]
[1723876602350,0.74555326,2600.5,2600.3,2.92933092]
[1723876603554,0.74555326,2600.5,2600.4,1.00694092]
[1723876604150,2.66780326,2600.5,2600.4,1.00694092]
[1723876604349,2.66780326,2600.5,2600.3,3.43267957]
[1723876604350,1.92232,2600.4,2600.3,1.00694092]
[1723876604551,0.3595,2600.4,2600.2,1.00694092]
[1723876604750,1.87075682,2600.4,2600.2,1.00694092]
[1723876605049,5.35685682,2600.3,2600.0,1.00694092]
[1723876605356,6.64193918,2600.1,2600.0,1.00694092]
[1723876605854,11.21363918,2600.1,2600.0,1.00694092]
[1723876606154,1.92269,2599.9,2599.8,1.01092879]
[1723876607158,3.43400558,2599.9,2599.8,0.00398787]
[1723876607362,1.92269,2599.9,2599.8,0.00398787]
[1723876611963,2.28216,2600.0,2599.8,0.00398787]
[1723876614666,1.51131558,2600.3,2599.8,4.85732879]
[1723876614857,3.93680715,2600.4,2600.0,1.00694092]
[1723876614858,0.7474,2600.4,2600.0,1.00694092]
[1723876615165,0.7474,2600.4,2600.2,1.92246]
[1723876615365,2.66973,2600.4,2600.2,1.92246]
[1723876621277,0.7474,2600.4,2600.3,1.9224]
[1723876621573,2.30193326,2600.5,2600.3,3.8456]
[1723876621574,0.00355326,2600.5,2600.3,3.8456]
[1723876621871,0.00355326,2600.5,2600.4,0.3765]
[1723876623967,1.92580326,2600.5,2600.4,0.3765]
[1723876624168,1.92245,2600.3,2600.1,3.29686092]
[1723876624468,3.02707,2600.4,2600.1,3.29686092]
[1723876624676,3.02707,2600.4,2600.1,2.28992]
[1723876624862,3.02707,2600.4,2600.1,3.29686092]
[1723876628977,1.9224,2600.3,2600.1,3.29686092]
[1723876629177,1.9224,2600.3,2600.1,2.28992]
[1723876630471,1.9224,2600.3,2600.1,3.29686092]
[1723876630979,1.9224,2600.3,2600.1,2.28992]
[1723876631178,1.9224,2600.3,2600.1,3.29686092]
[1723876639581,1.92247,2600.2,2600.1,1.37434092]
[1723876639882,1.1047,2600.4,2600.1,1.37434092]
[1723876640088,1.92243,2600.3,2600.1,3.29688092]
[1723876640290,1.92243,2600.3,2600.1,0.3674]
[1723876640488,1.92247,2600.2,2600.0,2.92953092]
[1723876640987,0.3628,2600.1,2600.0,2.92953092]
[1723876641179,0.3628,2600.1,2600.0,4.8524048]
[1723876642377,6.13174,2600.1,2600.0,1.00694092]
[1723876642582,6.13174,2600.1,2599.9,1.51028957]
[1723876642583,7.417,2600.1,2599.8,1.01092879]
[1723876642791,0.7068,2600.0,2599.8,0.00398787]
[1723876643187,2.21811558,2600.0,2599.8,0.00398787]
[1723876643385,1.92269,2599.9,2599.8,0.00398787]
[1723876643587,9.20309558,2599.9,2599.8,0.00398787]
[1723876643779,12.69178,2599.9,2599.8,0.00398787]
[1723876644385,11.36447144,2599.9,2599.2,1.00694092]
[1723876644688,1.92328,2599.1,2599.0,1.00694092]
[1723876645093,5.77048,2599.1,2598.9,1.00694092]
[1723876645286,1.92328,2599.1,2598.9,1.00694092]
[1723876645485,1.92328,2599.1,2598.9,1.01112301]
[1723876646698,1.92328,2599.1,2598.9,0.00418209]
[1723876647787,1.92324,2599.2,2598.9,0.00418209]
[1723876648088,0.73357245,2599.3,2599.0,1.92334]
[1723876648288,0.35487245,2599.3,2599.0,1.92331]
[1723876650492,0.00577245,2599.3,2599.1,1.92327]
[1723876650791,0.00577245,2599.3,2599.2,2.65911]
[1723876650995,0.00577245,2599.3,2599.2,6.74524044]
[1723876651193,0.00028742,2599.3,2599.2,10.59244044]
[1723876651387,0.00028742,2599.3,2599.2,7.51325092]
[1723876652499,0.00028742,2599.3,2599.2,6.50631]
[1723876653902,0.00028742,2599.3,2599.2,11.50631]
[1723876654104,4.113,2599.7,2599.6,1.92291]
[1723876654396,0.3474,2599.8,2599.5,1.92293]
[1723876654603,2.27018,2599.8,2599.6,0.3569]
[1723876654802,0.3474,2599.8,2599.6,0.3569]
[1723876655204,0.3474,2599.8,2599.6,2.27979]
[1723876655793,5.48364,2599.9,2599.7,0.3617]
[1723876657595,3.2078,2599.9,2599.7,0.3617]
[1723876657794,3.2078,2599.9,2599.7,2.2845]
[1723876658797,3.2078,2599.9,2599.7,0.3617]
[1723876658997,0.35777245,2600.0,2599.9,1.92269]
[1723876659200,0.00577245,2600.0,2599.9,1.92269]
[1723876659390,0.00577245,2600.0,2599.9,5.76909]
[1723876661101,0.00577245,2600.0,2599.9,14.1582567]
[1723876661310,0.00577245,2600.0,2599.9,14.5056567]
[1723876663408,0.00577245,2600.0,2599.9,16.42833023]
[1723876663613,0.00577245,2600.0,2599.9,14.5056567]
[1723876663815,0.00577245,2600.0,2599.9,16.42838431]
[1723876664007,0.00577245,2600.0,2599.9,14.5056567]
[1723876665709,0.00577245,2600.0,2599.9,11.2978567]
[1723876666911,0.00577245,2600.0,2599.9,13.22055622]
[1723876667117,0.71105326,2600.5,2600.3,1.92238]
[1723876668114,0.36275326,2600.5,2600.4,1.92232]
[1723876670919,0.00355326,2600.5,2600.4,1.92232]
[1723876672809,0.00355326,2600.5,2600.4,5.76792]
[1723876673017,0.00355326,2600.5,2600.4,10.11823945]
[1723876686433,0.00355326,2600.5,2600.4,6.27263945]
[1723876687035,0.00355326,2600.5,2600.4,10.11823945]
[1723876688530,0.00355326,2600.5,2600.4,6.27263945]
[1723876688725,0.00355326,2600.5,2600.4,10.11823945]
[1723876688933,0.00355326,2600.5,2600.4,6.27263945]
[1723876689140,0.00355326,2600.5,2600.4,10.11823945]
[1723876689531,0.00355326,2600.5,2600.4,6.27263945]
[1723876689935,0.00355326,2600.5,2600.3,1.92237]
[1723876690132,0.00355326,2600.5,2600.2,1.92246]
[1723876690133,1.92236,2600.4,2600.2,1.92246]
[1723876690436,1.92236,2600.4,2600.2,10.07593999]
[1723876690638,0.7115,2600.3,2600.2,10.07593999]
[1723876692438,0.00355326,2600.5,2600.4,1.92233]
[1723876692636,0.71505326,2600.5,2600.4,1.92233]
[1723876693035,2.63731326,2600.5,2600.3,1.9224]
[1723876693238,2.63731326,2600.5,2600.2,1.92243]
[1723876693541,3.92285326,2600.5,2600.1,0.00577245]
[1723876693928,1.92243,2600.3,2600.1,0.00577245]
[1723876694140,0.3484,2600.2,2600.1,0.00577245]
[1723876695150,0.3484,2600.2,2600.1,1.92832245]
[1723876695337,3.92285326,2600.5,2600.3,1.92234]
[1723876696847,0.71505326,2600.5,2600.3,1.92234]
[1723876698344,0.71505326,2600.5,2600.4,1.92233]
[1723876699140,0.71505326,2600.5,2600.4,2.26373]
[1723876699941,0.71505326,2600.5,2600.4,3.26801201]
[1723876700245,0.71505326,2600.5,2600.4,2.26373]
[1723876700550,0.71505326,2600.5,2600.4,3.26801201]
[1723876701549,0.71505326,2600.5,2600.4,5.19050907]
[1723876702241,0.71505326,2600.5,2600.4,4.18622706]
[1723876702442,0.71505326,2600.5,2600.4,5.69366922]
[1723876704435,0.71505326,2600.5,2600.4,5.69365125]
[1723876705345,0.71505326,2600.5,2600.4,4.18620909]
[1723876706250,0.71505326,2600.5,2600.4,3.84480909]
[1723876709049,0.71505326,2600.5,2600.4,3.84484234]
[1723876711640,0.71505326,2600.5,2600.4,5.35598404]
[1723876712250,0.71505326,2600.5,2600.4,3.84484234]
[1723876713054,0.71505326,2600.5,2600.4,3.84483943]
[1723876713645,0.71505326,2600.5,2600.4,5.85482242]
[1723876714850,0.71505326,2600.5,2600.4,5.35613521]
[1723876716659,7.99246177,2600.5,2600.4,3.43380521]
[1723876717950,14.91472177,2600.5,2600.4,3.43380521]
[1723876718250,1.92248,2600.2,2600.1,1.01364342]
[1723876718445,1.92248,2600.2,2600.1,1.01366188]
[1723876718653,7.28032745,2600.2,2600.1,1.01366188]
[1723876718957,7.62492745,2600.2,2600.1,1.01366188]
[1723876719655,7.62492745,2600.2,2600.1,0.00577245]
[1723876720051,7.62492745,2600.2,2600.1,1.01366188]
[1723876720261,7.62492745,2600.2,2600.1,0.00577245]
[1723876721458,6.11268,2600.2,2600.1,0.00577245]
[1723876721861,7.62492745,2600.2,2600.1,0.00577245]
[1723876722753,6.11268,2600.2,2600.1,0.00577245]
[1723876723563,13.12898363,2600.2,2599.7,1.00788943]
[1723876723860,3.43371617,2599.9,2599.6,3.27689943]
[1723876724157,0.3447,2599.8,2599.6,3.27689943]
[1723876724560,0.3649,2599.7,2599.6,3.27689943]
[1723876724759,0.3649,2599.7,2599.6,1.35398943]
[1723876726161,0.3649,2599.7,2599.6,0.3461]
[1723876726458,0.3649,2599.7,2599.6,1.35398943]
[1723876726761,0.3649,2599.7,2599.6,3.27690943]
[1723876727657,0.3649,2599.7,2599.6,1.35398943]
[1723876728260,0.3649,2599.7,2599.6,3.27690943]
[1723876728660,0.3649,2599.7,2599.6,2.26902]
[1723876729459,3.2078,2600.0,2599.6,5.20038943]
[1723876729760,3.2078,2600.0,2599.8,1.9227]
[1723876731162,3.2078,2600.0,2599.7,2.93068943]
[1723876731357,3.549,2600.0,2599.7,1.9228]
[1723876731561,3.549,2600.0,2599.7,2.93068943]
[1723876731761,3.2078,2600.0,2599.8,1.92274]
[1723876732162,3.2078,2600.0,2599.8,2.28804]
[1723876733159,3.2078,2600.0,2599.9,1.9227]
[1723876734259,3.9016,2600.1,2599.9,1.9227]
[1723876734558,3.9016,2600.1,2599.8,2.28803]
[1723876734559,5.8242,2600.1,2599.8,2.28803]
[1723876735267,3.9016,2600.1,2599.9,1.92269]
[1723876735667,3.9016,2600.1,2600.0,0.3427]
[1723876735668,5.82415,2600.1,2600.0,0.3427]
[1723876735862,5.82415,2600.1,2599.9,1.92268]
[1723876737059,3.9016,2600.1,2599.9,1.92268]
[1723876738560,5.82416,2600.1,2599.9,1.92268]
[1723876738966,3.9016,2600.1,2599.9,1.92268]
[1723876739867,3.9016,2600.1,2600.0,1.92262]
[1723876740258,3.9016,2600.1,2599.9,0.3702]
[1723876740259,3.9016,2600.1,2599.9,2.29285]
[1723876740461,5.82416,2600.1,2599.9,2.29285]
[1723876740863,2.61636,2600.1,2599.9,2.29285]
[1723876741268,5.82416,2600.1,2599.9,2.29285]